Workbook

Sheet Сведения по пробегам
B1: Подсветка строки | C1: Вкл
A2: Сведения по пробегам автомашин
A3: № п/п | B3: Наименование | C3: Гос. номер | D3: Год выпуска | E3: Пробег с начала экспл на 01.01.23 | F3: Пробег за 2023 | G3: Пробег общий с начала эксплу- атации | H3: Январь | I3: Февраль | J3: Март | K3: I квартал | L3: Апрель | M3: Май | N3: Июнь | O3: II квартал | P3: Июль | Q3: Август | R3: Сентябрь | S3: III Квартал | T3: Октябрь | U3: Ноябрь | V3: Декабрь | W3: IV Квартал
A4: Легковые автомобили
A5: Автобусы
A6: 1 | B6: Hyundai Universe hd | C6: 169 AH 07 | D6: 2014 | K6: =H6+I6+J6 -> 0 | O6: =N6+M6+L6 -> 0 | S6: =R6+Q6+P6 -> 0 | W6: =V6+U6+T6 -> 0
A7: =OFFSET(A7,-1,0,1,1)+1 -> 2 | B7: Hyundai Universe | C7: 453 АН 07 | D7: 2015 | K7: 0 | O7: 0 | S7: 0 | W7: 0
A8: =OFFSET(A8,-1,0,1,1)+1 -> 3 | B8: Hyundai Universe | C8: 463 АК 07 | D8: 2015 | K8: 0 | O8: 0 | S8: 0 | W8: 0
A9: 4 | B9: Hyundai Universe | C9: 467 АК 07 | D9: 2015 | K9: 0 | O9: 0 | S9: 0 | W9: 0
A10: 5 | B10: Hyundai Universe | C10: 476 АК 07 | D10: 2015 | K10: 0 | O10: 0 | S10: 0 | W10: 0
A11: 6 | B11: Hyundai Universe | C11: 931 AU 07 | D11: 2022 | H11: 25 | I11: 10 | J11: 5 | K11: =SUM(H11:J11) -> 40 | O11: 0 | W11: 0
A12: 7 | B12: Hyundai Universe | C12: 933 AU 07 | D12: 2022 | K12: 0 | O12: 0 | W12: 0
A13: 9 | B13: Hyundai Universe | C13: 935 AU 07 | D13: 2022 | K13: 0 | O13: 0
A14: 1 | B14: Toyota Coaster | C14: 443 AN 07 | D14: 2022 | H14: 15 | I14: 10 | J14: 25 | K14: =H14+I14+J14 -> 50 | O14: =N14+M14+L14 -> 0 | S14: =R14+Q14+P14 -> 0 | W14: =V14+U14+T14 -> 0

Sheet Тракторы, погрузчики, грейдеры
C3: Погрузчики:
A4: 1 | B4: 1 | C4: M 4040 | D4: ACD 154 L | E4: 1990 | J4: 32 | L4: =K4+J4+I4 -> 32 | P4: =O4+N4+M4 -> 0 | T4: =S4+R4+Q4 -> 0 | X4: =W4+V4+U4 -> 0
A5: 2 | B5: 2 | C5: МКСМ Амкодор | D5: ADD 871 L | E5: 2013 | I5: 154 | J5: 148 | L5: =K5+J5+I5 -> 302 | P5: =O5+N5+M5 -> 0 | T5: =S5+R5+Q5 -> 0 | X5: =W5+V5+U5 -> 0
A6: 3 | B6: 3 | C6: МКСМ Амкодор | D6: ADD 872 L | E6: 2015 | I6: 182 | J6: 148 | L6: =K6+J6+I6 -> 330 | P6: =O6+N6+M6 -> 0 | T6: =S6+R6+Q6 -> 0 | X6: =W6+V6+U6 -> 0
A7: 4 | B7: 4 | C7: Амкодор 342 | D7: ADD 876 L | E7: 2015 | I7: 102 | J7: 71
A8: 5 | B8: 5 | C8: Погрузчик телескопич. FARESIN | D8: ALD L517 | E8: 2016 | I8: 88 | J8: 74
A9: 6 | B9: 6 | C9: BOBCAT | D9: AFD021L | E9: 2017 | I9: 102 | J9: 66
A10: 7 | B10: 7 | C10: BOBCAT | D10: AFD022L | E10: 2017 | I10: 188 | J10: 84
A11: 8 | B11: 8 | C11: Погрузчик фронтальн.LW300FN | D11: AFD032L | E11: 2017 | I11: 59 | J11: 53
A12: 9 | B12: 9 | C12: Погрузчик фронтальн.LW300 | D12: L676ATD | E12: 2018 | I12: 80 | J12: 95
A13: 10 | B13: 10 | C13: МКСМ1000н | D13: L683ATD | E13: 2019 | I13: 94 | J13: 68
A14: 11 | B14: 11 | C14: МКСМ1000н | D14: L684ATD | E14: 2019 | I14: 55
A15: 12 | B15: 12 | C15: Погрузчик телескопич. FARESIN | D15: 695LADD | E15: 2019 | I15: 96 | J15: 88
I16: =SUM(I4:I15) -> 1200
B17: Автогрейдеры:
A18: 13 | B18: 1 | C18: Автогрейдер ГС-14,02 | D18: L 878 ADD | E18: 2015 | F18: 15580 | G18: =L18+P18+T18+X18 -> 137 | H18: =F18+G18 -> 15717 | I18: 102 | J18: 35 | L18: =K18+J18+I18 -> 137 | P18: =O18+N18+M18 -> 0 | T18: =S18+R18+Q18 -> 0 | X18: =W18+V18+U18 -> 0
A19: 14 | B19: 2 | C19: Автогрейдер ДЗ-98В | D19: AED 716 L | E19: 2016 | F19: 10 | G19: =L19+P19+T19+X19 -> 170 | H19: =F19+G19 -> 180 | I19: 103 | J19: 67 | L19: =K19+J19+I19 -> 170 | P19: =O19+N19+M19 -> 0 | T19: =S19+R19+Q19 -> 0 | X19: =W19+V19+U19 -> 0
A20: 15 | B20: 3 | C20: Автогрейдер ГС-14,02 | D20: L 536 ALD | E20: 2017 | F20: 7362 | G20: =L20+P20+T20+X20 -> 203 | H20: =F20+G20 -> 7565 | I20: 135 | J20: 68 | L20: =K20+J20+I20 -> 203 | P20: =O20+N20+M20 -> 0 | T20: =S20+R20+Q20 -> 0 | X20: =W20+V20+U20 -> 0
A21: 16 | B21: 4 | C21: Автогрейдер ГС-14,02 | D21: AFD215L | E21: 2018 | I21: 118 | J21: 66
A22: 17 | B22: 5 | C22: Автогрейдер ДЗ-98В | D22: 694LADD | E22: 2019 | I22: 95 | J22: 45
A23: 18 | B23: 6 | C23: Автогрейдер ДЗ-98В | D23: AFD446L | E23: 2019 | I23: 110 | J23: 73
F24: =SUM(F4:F23) -> 22952 | G24: =L24+P24+T24+X24 -> 1174 | H24: =SUM(H4:H23) -> 23462 | I24: =SUM(I18:I23) -> 663 | L24: =SUM(L4:L23) -> 1174 | P24: =SUM(P4:P23) -> 0 | T24: =SUM(T4:T23) -> 0 | X24: =SUM(X4:X23) -> 0
B25: Трактора колесные:
A26: 19 | B26: 1 | C26: Беларус 82.1 | D26: ALD L528 | E26: 2016 | I26: 149 | J26: 122
A27: 20 | B27: 2 | C27: Беларус 82.1 | D27: ALD L529 | E27: 2016 | I27: 160 | J27: 90
A28: 21 | B28: 3 | C28: Беларус 82.1 | D28: L549AUD | E28: 2019 | I28: 110 | J28: 16
A29: 22 | B29: 4 | C29: K701 | D29: L414AND | E29: 1984
A30: 23 | B30: 5 | C30: K701P | D30: L416AND | E30: 1987 | J30: 12
A31: 24 | B31: 6 | C31: K701 | D31: L027AFD | E31: 1988
A32: 25 | B32: 7 | C32: K700A | D32: L417AND | E32: 1988 | I32: 22 | J32: 2
A33: 26 | B33: 8 | C33: K701A | D33: L676AMD | E33: 1993 | I33: 20 | J33: 24
A34: 27 | B34: 9 | C34: K702M | D34: AED718L | E34: 2016 | I34: 87 | J34: 50.5
A35: 28 | B35: 10 | C35: K702M | D35: AED719L | E35: 2016 | I35: 100 | J35: 52
A36: 29 | B36: 11 | C36: K702M | D36: AED720L | E36: 2016 | J36: 67.5
A37: 30 | B37: 12 | C37: K703 | D37: L883ATD | E37: 2019 | I37: 83 | J37: 50.5
A38: 31 | B38: 13 | C38: K703 | D38: L884ATD | E38: 2019 | I38: 116 | J38: 69
I39: =SUM(I26:I38) -> 847

Sheet Сведение по пробегам ТКА
A1: Сведения по пробегам автомашин ТКА за 2022 г.
A3: № п/п | B3: № по типу | C3: Наименование и краткая характеристика | D3: Гос. номер | E3: Год выпуска | F3: Пробег с нач. экспл на 01.01.22 | G3: Пробег за 2022 | H3: Пробег с начала эксплуа-тации общий | I3: Январь | J3: Февраль | K3: Март | L3: I квартал | M3: Апрель | N3: Май | O3: Июнь | P3: II квартал | Q3: Июль | R3: Август | S3: Сентябрь | T3: III квартал | U3: Октябрь | V3: Ноябрь | W3: Декабрь | X3: IV квартал
A6: Легковые автомобили
A7: 1 | B7: 1 | C7: Toyota HiAce ПЕРЕДАНА в КИФ | D7: 188 AN 07 | E7: 2016 | F7: 392854 | G7: 33380 | H7: =F7+G7 -> 426234 | I7: 5194 | J7: 5171 | K7: 5722 | L7: =K7+J7+I7 -> 16087 | M7: 5341 | N7: 6183 | O7: 5769 | P7: =M7+N7+O7 -> 17293 | Q7: 5810 | R7: 5637 | S7: 5576 | T7: =Q7+R7+S7 -> 17023 | U7: 1707 | X7: =U7+V7+W7 -> 1707
A8: 2 | B8: 2 | C8: Toyota HiAce ПЕРЕДАНА в КИФ | D8: 801 AK 07 | E8: 2016 | F8: 287167 | G8: =L8+P8+T8+X8 -> 45864 | H8: =F8+G8 -> 333031 | I8: 3854 | J8: 4168 | K8: 4868 | L8: =K8+J8+I8 -> 12890 | M8: 4399 | N8: 4480 | O8: 4286 | P8: =M8+N8+O8 -> 13165 | Q8: 4561 | R8: 4218 | S8: 8056 | T8: =Q8+R8+S8 -> 16835 | U8: 2974 | X8: =U8+V8+W8 -> 2974
A9: 3 | B9: 1 | C9: Toyota Coaster ПЕРЕДАНА в КИФ | D9: 659 AN 07 | E9: 2016 | F9: 409975 | G9: 69044 | H9: 479019 | I9: 6318 | J9: 6871 | K9: 7600 | L9: 20789 | M9: 7403 | N9: 7701 | O9: 7491 | P9: 22595 | Q9: 7807 | R9: 7763 | S9: 7505 | T9: 23075 | U9: 2585 | X9: 2585
A10: 4 | B10: 2 | C10: Toyota Coaster ПЕРЕДАНА в КИФ | D10: 937 АО 07 | E10: 2017 | F10: 248476 | G10: 45588 | H10: 294064 | I10: 4012 | J10: 4522 | K10: 4924 | L10: 13458 | M10: 5094 | N10: 5276 | O10: 5089 | P10: 15459 | Q10: 4881 | R10: 5213 | S10: 4987 | T10: 15081 | U10: 1590 | X10: 1590
F11: =SUM(F7:F10) -> 1338472 | G11: 193876 | H11: 1532348 | I11: =SUM(I7:I10) -> 19378 | J11: 20732 | K11: 23114 | L11: 63224 | M11: 22237 | N11: 23640 | O11: 22635 | P11: 68512 | T11: =SUM(T7:T10) -> 72014 | U11: =SUM(U7:U10) -> 8856 | V11: =SUM(V7:V10) -> 0 | W11: =SUM(W7:W10) -> 0 | X11: =SUM(X7:X10) -> 8856
J16: С
